bitfinex-derivatives/quotes_BNBF0:USTF0_20260114
["timestamp","ask_amount","ask_price","bid_price","bid_amount"]
[1768402211535,0.76091387,941.93,940.11,2.5741607]
[1768402211741,0.76091387,941.92,940.11,2.5741607]
[1768402212036,0.76091387,941.91,939.83,2.5741607]
[1768402212235,0.76091387,941.9,939.83,2.5741607]
[1768402212435,0.76091387,941.89,939.83,2.5741607]
[1768402212639,0.76091387,941.88,939.94,2.5741607]
[1768402212936,0.76091387,941.87,939.94,2.5741607]
[1768402213136,0.76091387,941.86,940.0,2.5741607]
[1768402213435,0.76091387,941.85,940.0,2.5741607]
[1768402213638,0.76091387,941.84,940.01,2.5741607]
[1768402213837,0.76091387,941.83,940.01,2.5741607]
[1768402214037,1.808,942.25,940.01,2.5741607]
[1768402214238,0.76342362,942.24,940.11,2.5741607]
[1768402214439,0.76342362,942.23,940.11,2.5741607]
[1768402214640,0.76342362,942.22,940.11,2.5741607]
[1768402214839,0.76342362,942.21,940.11,2.5741607]
[1768402215039,0.76342362,942.2,940.11,2.5741607]
[1768402215237,0.76342362,942.19,940.12,2.5741607]
[1768402215443,0.76342362,942.18,940.12,2.5741607]
[1768402215644,0.76342362,942.17,940.06,2.5741607]
[1768402215939,0.76342362,942.16,940.06,2.5741607]
[1768402216138,0.76342362,942.15,940.08,2.5741607]
[1768402216339,0.76342362,942.14,940.08,2.5741607]
[1768402216640,0.76342362,942.13,940.08,2.5741607]
[1768402216839,1.808,942.25,940.08,2.5741607]
[1768402216840,0.76342362,942.12,940.08,2.5741607]
[1768402217038,0.76342362,942.11,940.08,2.5741607]
[1768402217242,0.76342362,942.1,940.09,2.5741607]
[1768402217441,0.76342362,942.09,940.09,2.5741607]
[1768402217644,0.76342362,942.08,940.09,2.5741607]
[1768402217843,0.76342362,942.07,940.1,2.5741607]
[1768402218143,0.76342362,942.06,940.1,2.5741607]
[1768402218343,0.76501707,942.05,940.21,2.5741607]
[1768402218540,0.76501707,942.04,940.21,2.5741607]
[1768402218740,0.76501707,942.03,940.22,2.5741607]
[1768402218941,0.76501707,942.02,940.22,2.5741607]
[1768402219147,0.76501707,942.01,940.22,2.5741607]
[1768402219442,0.76501707,942.0,940.25,2.5741607]
[1768402219742,0.76501707,941.99,940.25,2.5741607]
[1768402219945,0.76501707,941.98,940.25,2.5741607]
[1768402220245,0.76501707,941.97,940.25,2.5741607]
[1768402220443,0.76501707,941.96,940.26,2.5741607]
[1768402220641,0.76501707,941.95,940.26,2.5741607]
[1768402220941,0.76501707,941.94,940.26,2.5741607]
[1768402221244,0.76501707,941.93,940.26,2.5741607]
[1768402221445,0.76501707,941.92,940.26,2.5741607]
[1768402221645,0.76501707,941.91,940.26,2.5741607]
[1768402221842,0.76501707,941.9,940.26,2.5741607]
[1768402222044,0.76501707,941.89,940.26,2.5741607]
[1768402222343,0.76501707,941.88,940.26,2.5741607]
[1768402222541,0.76501707,941.87,940.26,2.5741607]
[1768402222745,0.76501707,941.86,940.26,2.5741607]
[1768402222940,0.76501707,941.85,940.26,2.5741607]
[1768402223241,0.76501707,941.84,940.26,2.5741607]
[1768402223445,0.76501707,941.83,940.2,2.5741607]
[1768402223641,0.76501707,941.82,940.2,2.5741607]
[1768402223842,0.76501707,941.81,940.2,2.5741607]
[1768402224047,0.76501707,941.8,940.15,2.5741607]
[1768402224242,0.76501707,941.79,940.15,2.5741607]
[1768402224445,0.76501707,941.78,940.14,2.5741607]
[1768402224643,0.76501707,941.77,940.14,2.5741607]
[1768402224844,0.76501707,941.76,940.14,2.5741607]
[1768402225044,0.76501707,941.75,940.13,2.5741607]
[1768402225244,0.76501707,941.74,940.13,2.5741607]
[1768402225545,0.76501707,941.73,940.13,2.5741607]
[1768402225742,0.76501707,941.72,940.13,2.5741607]
[1768402225948,0.76501707,941.71,940.13,2.5741607]
[1768402226145,0.76501707,941.7,940.12,2.5741607]
[1768402226346,0.76501707,941.69,940.12,2.5741607]
[1768402226544,0.76501707,941.68,940.0,2.5741607]
[1768402226849,0.76501707,941.67,940.0,2.5741607]
[1768402227051,0.76501707,941.66,940.0,2.5741607]
[1768402227248,0.7645577,941.65,940.01,2.5741607]
[1768402227448,0.7645577,941.64,940.01,2.5741607]
[1768402227650,0.7645577,941.63,940.0,2.5741607]
[1768402227950,0.7645577,941.62,940.0,2.5741607]
[1768402228250,0.7645577,941.61,939.99,2.5741607]
[1768402228450,0.7645577,941.6,939.99,2.5741607]
[1768402228646,0.7645577,941.59,939.99,2.5741607]
[1768402228851,0.7645577,941.58,939.99,2.5741607]
[1768402229151,2.9875577,941.57,939.99,2.5741607]
[1768402229346,2.223,941.57,939.99,2.5741607]
[1768402230249,2.223,941.57,940.0,2.5741607]
[1768402231250,2.223,941.57,940.02,2.5741607]
[1768402231748,2.223,941.57,940.03,2.5741607]
[1768402232253,2.223,941.57,940.04,2.5741607]
[1768402233054,2.223,941.57,939.89,2.5741607]
[1768402233354,0.76408417,941.56,939.89,2.5741607]
[1768402233655,0.76408417,941.55,939.9,2.5741607]
[1768402233950,0.76408417,941.54,939.9,2.5741607]
[1768402234153,0.76408417,941.53,939.9,2.5741607]
[1768402234449,0.76408417,941.52,939.9,2.5741607]
[1768402234652,0.76408417,941.51,939.9,2.5741607]
[1768402234851,2.223,941.57,939.9,2.5741607]
[1768402235050,0.76412777,941.56,939.9,2.5741607]
[1768402235254,0.76412777,941.55,939.9,2.5741607]
[1768402235455,0.76412777,941.54,939.9,2.5741607]
[1768402235653,0.76412777,941.53,939.9,2.5741607]
[1768402235853,0.76412777,941.52,939.9,2.5741607]
[1768402236057,0.76412777,941.51,939.9,2.5741607]
[1768402236260,0.76412777,941.5,939.89,2.5741607]
[1768402236556,2.223,941.57,939.89,2.5741607]
[1768402236757,0.76427182,941.56,939.91,2.5741607]
[1768402236960,2.223,941.57,939.91,2.5741607]
[1768402236961,0.76427182,941.55,939.91,2.5741607]
[1768402237161,0.76427182,941.54,939.91,2.5741607]
[1768402237359,0.76427182,941.53,939.93,2.5741607]
[1768402237662,0.76427182,941.52,939.93,2.5741607]
[1768402237860,0.76427182,941.51,939.87,2.5741607]
[1768402238062,0.76427182,941.5,939.87,2.5741607]
[1768402238256,0.76427182,941.49,939.87,2.5741607]
[1768402238458,0.76427182,941.48,939.83,2.5741607]
[1768402238658,0.76427182,941.47,939.83,2.5741607]
[1768402238964,0.76427182,941.46,939.83,2.5741607]
[1768402239258,0.76427182,941.45,939.83,2.5741607]
[1768402239462,0.76427182,941.44,939.83,2.5741607]
[1768402239758,0.76427182,941.43,939.83,2.5741607]
[1768402239963,0.76427182,941.42,939.83,2.5741607]
[1768402240159,2.223,941.57,939.83,2.5741607]
[1768402240360,0.76480797,941.56,939.84,2.5741607]
[1768402240564,0.76480797,941.55,939.84,2.5741607]
[1768402240864,0.76480797,941.54,939.84,2.5741607]
[1768402241066,0.76480797,941.53,939.84,2.5741607]
[1768402241264,0.76480797,941.52,939.84,2.5741607]
[1768402241464,0.76480797,941.51,939.82,2.5741607]
[1768402241664,0.76480797,941.5,939.82,2.5741607]
[1768402241964,0.76480797,941.49,939.82,2.5741607]
[1768402242264,0.76480797,941.48,939.82,2.5741607]
[1768402242460,0.76480797,941.47,939.82,2.5741607]
[1768402242664,0.76480797,941.46,939.82,2.5741607]
[1768402242862,0.76480797,941.45,939.82,2.5741607]
[1768402243064,0.76480797,941.44,939.81,2.5741607]
[1768402243267,0.76480797,941.43,939.81,2.5741607]
[1768402243463,0.76480797,941.42,939.81,2.5741607]
[1768402243668,0.76480797,941.41,939.83,2.5741607]
[1768402243969,0.76480797,941.4,939.83,2.5741607]
[1768402244169,0.76480797,941.39,939.77,2.5741607]
[1768402244469,0.76480797,941.38,939.63,2.5741607]
[1768402244768,0.76480797,941.37,939.63,2.5741607]
[1768402244963,0.76480797,941.36,939.63,2.5741607]
[1768402245169,0.76480797,941.35,939.63,2.5741607]
[1768402245369,0.76480797,941.34,939.59,2.5741607]
[1768402245570,0.76480797,941.33,939.59,2.5741607]
[1768402245769,0.76480797,941.32,939.59,2.5741607]
[1768402245966,0.76480797,941.31,939.55,2.5741607]
[1768402246264,0.76480797,941.3,939.55,2.5741607]
[1768402246469,0.76480797,941.29,939.55,2.5741607]
[1768402246667,0.76480797,941.28,939.55,2.5741607]
[1768402246866,0.76480797,941.27,939.55,2.5741607]
[1768402247168,0.76480797,941.26,939.55,2.5741607]
[1768402247471,0.76480797,941.25,939.56,2.5741607]
[1768402247770,0.76480797,941.24,939.56,2.5741607]
[1768402248070,0.76480797,941.23,939.56,2.5741607]
[1768402248267,0.76480797,941.22,939.56,2.5741607]
[1768402248470,0.76480797,941.21,939.59,2.5741607]
[1768402248671,0.76480797,941.2,939.59,2.5741607]
[1768402248967,0.76480797,941.19,939.59,2.5741607]
[1768402249270,0.76480797,941.18,939.59,2.5741607]
[1768402249470,2.223,941.57,939.59,2.5741607]
[1768402249771,0.76564109,941.56,939.76,2.5741607]
[1768402249968,0.76564109,941.55,939.76,2.5741607]
[1768402250271,0.76564109,941.54,939.76,2.5741607]
[1768402250471,0.76564109,941.53,939.76,2.5741607]
[1768402250668,0.76564109,941.52,939.8,2.5741607]
[1768402250970,0.76564109,941.51,939.8,2.5741607]
[1768402251167,0.76564109,941.5,939.78,2.5741607]
[1768402251366,0.76564109,941.49,939.78,2.5741607]
[1768402251570,0.76564109,941.48,939.78,2.5741607]
[1768402251771,0.76564109,941.47,939.78,2.5741607]
[1768402251971,0.76564109,941.46,939.78,2.5741607]
[1768402252173,0.76564109,941.45,939.78,2.5741607]
[1768402252468,0.76564109,941.44,939.78,2.5741607]
[1768402252672,0.76564109,941.43,939.78,2.5741607]
[1768402252974,0.76564109,941.42,939.78,2.5741607]
[1768402253173,0.76564109,941.41,939.8,2.5741607]
[1768402253473,0.76564109,941.4,939.8,2.5741607]
[1768402253670,0.76564109,941.39,939.81,2.5741607]
[1768402253872,0.76564109,941.38,939.81,2.5741607]
[1768402254073,0.76564109,941.37,939.81,2.5741607]
[1768402254372,0.76564109,941.36,939.89,2.5741607]
[1768402254568,0.76564109,941.35,939.89,2.5741607]
[1768402254770,0.76564109,941.34,939.89,2.5741607]
[1768402254970,0.76564109,941.33,939.89,2.5741607]
[1768402255168,2.223,941.57,939.89,2.5741607]
[1768402255169,0.76589086,941.32,939.89,2.5741607]
[1768402255368,2.223,941.57,939.9,2.5741607]
[1768402255573,0.76589086,941.56,939.9,2.5741607]
[1768402255770,0.76589086,941.55,939.9,2.5741607]
[1768402256073,0.76589086,941.54,939.9,2.5741607]
[1768402256270,0.76589086,941.53,939.91,2.5741607]
[1768402256476,0.76589086,941.52,939.91,2.5741607]
[1768402256671,0.76589086,941.51,939.91,2.5741607]
[1768402256875,0.76589086,941.5,939.92,2.5741607]
[1768402257078,0.76589086,941.49,939.92,2.5741607]
[1768402257273,0.76589086,941.48,939.92,2.5741607]
[1768402257577,0.76589086,941.47,939.92,2.5741607]
[1768402257775,0.76589086,941.46,939.92,2.5741607]
[1768402257979,0.76589086,941.45,939.92,2.5741607]
[1768402258179,0.76589086,941.44,939.75,2.5741607]
[1768402258379,0.76589086,941.43,939.75,2.5741607]
[1768402258676,0.76589086,941.42,939.75,2.5741607]
[1768402258881,0.76589086,941.41,939.75,2.5741607]
[1768402259075,0.76589086,941.4,939.75,2.5741607]
[1768402259381,0.76589086,941.39,939.76,2.5741607]
[1768402259676,0.76589086,941.38,939.76,2.5741607]
[1768402259880,0.76589086,941.37,939.75,2.5741607]
[1768402260182,0.76589086,941.36,939.75,2.5741607]
[1768402260377,2.223,941.57,939.73,2.5741607]
[1768402260378,0.76589086,941.35,939.73,2.5741607]
[1768402260581,0.76589086,941.34,939.73,2.5741607]
[1768402260778,0.76589086,941.33,939.73,2.5741607]
[1768402260979,0.76589086,941.32,939.73,2.5741607]
[1768402261281,0.76589086,941.31,939.73,2.5741607]
[1768402261581,0.76589086,941.3,939.73,2.5741607]
[1768402261778,2.223,941.57,939.72,2.5741607]
[1768402261779,0.76589086,941.29,939.72,2.5741607]
[1768402261978,0.76589086,941.28,939.72,2.5741607]
[1768402262183,0.76589086,941.27,939.72,2.5741607]
[1768402262383,0.76589086,941.26,939.73,2.5741607]
[1768402262683,0.76589086,941.25,939.73,2.5741607]
[1768402262879,0.76589086,941.24,939.75,2.5741607]
[1768402263083,0.76589086,941.23,939.75,2.5741607]
[1768402263283,2.223,941.57,939.75,2.5741607]
[1768402263479,0.76598885,941.56,939.84,2.5741607]
[1768402263780,0.76598885,941.55,939.84,2.5741607]
[1768402263980,0.76598885,941.54,939.98,2.5741607]
[1768402264184,0.76598885,941.53,939.98,2.5741607]
[1768402264380,0.76598885,941.52,939.98,2.5741607]
[1768402264581,0.76598885,941.51,940.0,2.5741607]
[1768402264781,0.76598885,941.5,940.0,2.5741607]
[1768402265081,0.76598885,941.49,939.98,2.5741607]
[1768402265285,0.76598885,941.48,939.98,2.5741607]
[1768402265483,0.76598885,941.47,939.98,2.5741607]
[1768402265682,0.76598885,941.46,939.98,2.5741607]
[1768402265880,0.76598885,941.45,939.98,2.5741607]
[1768402266085,0.76598885,941.44,939.98,2.5741607]
[1768402266382,0.76598885,941.43,939.98,2.5741607]
[1768402266585,0.76598885,941.42,940.0,2.5741607]
[1768402266781,0.76598885,941.41,940.0,2.5741607]
[1768402267080,0.76598885,941.4,940.0,2.5741607]
[1768402267282,0.76598885,941.39,940.0,2.5741607]
[1768402267480,0.76598885,941.38,940.01,2.5741607]
[1768402267782,0.76598885,941.37,940.01,2.5741607]
[1768402267984,0.76598885,941.36,940.01,2.5741607]
[1768402268182,0.76598885,941.35,940.03,2.5741607]
[1768402268382,0.76598885,941.34,940.03,2.5741607]
[1768402268586,0.76598885,941.33,940.05,2.5741607]
[1768402268782,0.76598885,941.32,940.05,2.5741607]
[1768402268983,0.76598885,941.31,940.05,2.5741607]
[1768402269187,0.76598885,941.3,940.05,2.5741607]
[1768402269387,0.76598885,941.29,940.05,2.5741607]
[1768402269587,0.76730975,941.28,940.04,2.5741607]
[1768402269786,0.76730975,941.27,940.04,2.5741607]
[1768402269985,2.223,941.57,940.04,2.5741607]
[1768402270186,0.76729085,941.56,940.07,2.5741607]
[1768402270488,0.76729085,941.55,940.07,2.5741607]
[1768402270788,0.76729085,941.54,940.08,2.5741607]
[1768402270984,0.76729085,941.53,940.08,2.5741607]
[1768402271185,0.76729085,941.52,940.11,2.5741607]
[1768402271388,0.76729085,941.51,940.11,2.5741607]
[1768402271589,0.76729085,941.5,940.11,2.5741607]
[1768402271783,0.76729085,941.49,940.11,2.5741607]
[1768402271986,0.76729085,941.48,940.11,2.5741607]
[1768402272189,0.76729085,941.47,940.11,2.5741607]
[1768402272389,0.76729085,941.46,940.14,2.5741607]
[1768402272588,0.76729085,941.45,940.14,2.5741607]
[1768402272790,0.76729085,941.44,940.14,2.5741607]
[1768402273090,0.76729085,941.43,940.14,2.5741607]
[1768402273289,0.76729085,941.42,940.16,2.5741607]
[1768402273489,0.76729085,941.41,940.16,2.5741607]
[1768402273689,0.76729085,941.4,940.16,2.5741607]
[1768402273889,0.76729085,941.39,940.17,2.5741607]
[1768402274188,0.76729085,941.38,940.17,2.5741607]
[1768402274386,0.76729085,941.37,940.16,2.5741607]
[1768402274589,0.76729085,941.36,940.16,2.5741607]
[1768402274884,0.76729085,941.35,940.17,2.5741607]
[1768402275089,0.76729085,941.34,940.17,2.5741607]
[1768402275284,0.76729085,941.33,940.17,2.5741607]
[1768402275485,0.1846825,943.42,940.17,2.5741607]
[1768402275789,1.597,941.32,940.17,2.5741607]
[1768402275989,0.76776135,941.31,940.08,2.5741607]
[1768402276185,0.76776135,941.3,940.08,2.5741607]
[1768402276386,0.76776135,941.29,940.09,2.5741607]
[1768402276686,0.76776135,941.28,940.09,2.5741607]
[1768402276889,0.76776135,941.27,940.08,2.5741607]
[1768402277090,0.76776135,941.26,940.08,2.5741607]
[1768402277290,0.76776135,941.25,940.08,2.5741607]
[1768402277587,0.76776135,941.24,940.08,2.5741607]
[1768402277788,0.76776135,941.23,940.08,2.5741607]
[1768402277993,0.76776135,941.22,940.08,2.5741607]
[1768402278190,1.597,941.32,940.08,2.5741607]
[1768402278493,0.76812119,941.31,940.09,2.5741607]
[1768402278690,0.76812119,941.3,940.09,2.5741607]
[1768402278896,0.76812119,941.29,940.09,2.5741607]
[1768402279090,0.76812119,941.28,940.09,2.5741607]
[1768402279290,0.76812119,941.27,940.09,2.5741607]
[1768402279490,0.76812119,941.26,940.1,2.5741607]
[1768402279694,0.76812119,941.25,940.1,2.5741607]
[1768402279992,0.76812119,941.24,940.1,2.5741607]
[1768402280195,0.76812119,941.23,940.1,2.5741607]
[1768402280391,0.76812119,941.22,940.1,2.5741607]
[1768402280596,1.597,941.32,940.11,2.5741607]
[1768402280793,0.76815548,941.31,940.11,2.5741607]
[1768402280992,1.597,941.32,940.11,2.5741607]
[1768402280993,0.76815548,941.3,940.11,2.5741607]
[1768402281192,0.76815548,941.29,940.13,2.5741607]
[1768402281394,0.76815548,941.28,940.13,2.5741607]
[1768402281594,0.76815548,941.27,940.13,2.5741607]
[1768402281796,0.76815548,941.26,940.13,2.5741607]
[1768402281992,0.76815548,941.25,940.13,2.5741607]
[1768402282294,0.76815548,941.24,940.13,2.5741607]
[1768402282497,1.597,941.32,940.13,2.5741607]
[1768402282696,0.76821717,941.31,940.14,2.5741607]
[1768402282896,0.76821717,941.3,940.14,2.5741607]
[1768402283098,0.76821717,941.29,940.14,2.5741607]
[1768402283397,0.76821637,941.28,940.14,2.5741607]
[1768402283592,0.76821637,941.27,940.15,2.5741607]
[1768402283797,0.76821637,941.26,940.15,2.5741607]
[1768402283993,0.76821637,941.25,940.15,2.5741607]
[1768402284198,0.76821637,941.24,940.14,2.5741607]
[1768402284395,1.597,941.32,940.14,2.5741607]
[1768402284599,0.7682153,941.31,940.14,2.5741607]
[1768402284795,0.7682153,941.3,940.14,2.5741607]
[1768402285095,0.7682153,941.29,940.14,2.5741607]
[1768402285397,0.7682153,941.28,940.14,2.5741607]
[1768402285598,0.7682153,941.27,940.14,2.5741607]
[1768402285799,0.7682153,941.26,940.15,2.5741607]
[1768402286000,0.7682153,941.25,940.15,2.5741607]
[1768402286201,1.597,941.32,940.22,2.5741607]
[1768402286901,1.597,941.32,940.35,2.5741607]
[1768402287298,1.597,941.32,940.38,2.5741607]
[1768402288300,0.251503,941.32,940.46,2.5741607]
[1768402288903,0.251503,941.32,940.33,2.5741607]
[1768402289099,0.251503,941.32,940.18,2.5741607]
[1768402289304,0.76767955,941.31,940.18,2.5741607]
[1768402289598,0.76767955,941.3,940.06,2.5741607]
[1768402289803,0.76767955,941.29,940.06,2.5741607]
[1768402290003,0.76767955,941.28,940.06,2.5741607]
[1768402290205,0.76767955,941.27,940.06,2.5741607]
[1768402290401,0.251503,941.32,940.06,2.5741607]
[1768402290701,0.76775227,941.31,940.08,2.5741607]
[1768402290904,0.76775227,941.3,940.08,2.5741607]
[1768402291100,0.251503,941.32,940.08,2.5741607]
[1768402291404,0.251503,941.32,940.15,2.5741607]
[1768402292403,0.251503,941.32,940.16,2.5741607]
[1768402293301,0.76815181,941.31,940.17,2.5741607]
[1768402293604,0.251503,941.32,940.17,2.5741607]
[1768402293799,0.76816129,941.31,940.17,2.5741607]
[1768402294002,0.251503,941.32,940.17,2.5741607]
[1768402294201,0.76816184,941.31,940.17,2.5741607]
[1768402294403,0.76816184,941.3,940.18,2.5741607]
[1768402294604,0.251503,941.32,940.18,2.5741607]
[1768402294904,0.76833346,941.31,940.18,2.5741607]
[1768402295101,0.76833346,941.3,940.18,2.5741607]
[1768402295301,0.251503,941.32,940.18,2.5741607]
[1768402295905,0.251503,941.32,940.35,2.5741607]
[1768402296506,0.251503,941.32,940.46,2.5741607]
[1768402296903,0.251503,941.32,940.45,2.5741607]
[1768402297503,0.251503,941.32,940.44,2.5741607]
[1768402298408,0.0459722,941.32,940.41,2.5741607]
[1768402299003,0.0459722,941.32,940.4,2.5741607]
[1768402299510,0.0459722,941.32,940.39,2.5741607]
[1768402300004,0.0459722,941.32,940.41,2.5741607]
[1768402300609,0.0459722,941.32,940.4,2.5741607]
[1768402301007,0.0459722,941.32,940.39,2.5741607]
[1768402301710,0.0459722,941.32,940.38,2.5741607]
[1768402302108,0.0459722,941.32,940.36,2.5741607]
[1768402302307,0.0459722,941.32,940.2,2.5741607]
[1768402303508,0.0459722,941.32,940.11,2.5741607]
[1768402303811,0.0459722,941.32,940.15,2.5741607]
[1768402304411,0.0459722,941.32,940.21,2.5741607]
[1768402304809,0.0459722,941.32,940.23,2.5741607]
[1768402305412,0.0459722,941.32,939.88,3.6689282]
[1768402305413,0.0459722,941.32,940.48,2.5741607]
[1768402306509,0.0459722,941.32,940.46,2.5741607]
[1768402307015,0.0459722,941.32,940.58,2.5741607]
[1768402307513,0.0459722,941.32,940.57,2.5741607]
[1768402308313,0.00858299,941.32,940.57,2.5741607]
[1768402308509,0.00858299,941.32,940.54,2.5741607]
[1768402309611,0.00858299,941.32,940.57,2.5741607]
[1768402310714,0.00858299,941.32,940.55,2.5741607]
[1768402311415,0.00858299,941.32,940.54,2.5741607]
[1768402311813,0.00858299,941.32,940.62,2.5741607]
[1768402312211,0.00858299,941.32,940.63,2.5741607]
[1768402313413,0.00160872,941.32,940.68,2.5741607]
[1768402314318,0.00160872,941.32,940.66,2.5741607]
[1768402314813,0.00160872,941.32,940.62,2.5741607]
[1768402315317,0.00160872,941.32,940.59,2.5741607]
[1768402315514,0.00160872,941.32,940.44,2.5741607]
[1768402316513,0.00160872,941.32,940.43,2.5741607]
[1768402317518,0.00160872,941.32,940.41,2.5741607]
[1768402318118,0.00160872,941.32,940.37,2.5741607]
[1768402318720,0.00859466,942.27,940.37,2.5741607]
[1768402318918,0.7634331,942.26,940.37,2.5741607]
[1768402319118,0.7634331,942.25,940.37,2.5741607]
[1768402319316,0.7634331,942.24,940.37,2.5741607]
[1768402319517,0.7634331,942.23,940.37,2.5741607]
[1768402319717,0.7634331,942.22,940.37,2.5741607]
[1768402320020,0.7634331,942.21,940.37,2.5741607]
[1768402320219,0.7634331,942.2,940.37,2.5741607]
[1768402320423,0.7634331,942.19,940.37,2.5741607]
[1768402320617,0.7634331,942.18,940.37,2.5741607]
[1768402320818,0.7634331,942.17,940.37,2.5741607]
[1768402321023,0.7634331,942.16,940.37,2.5741607]
[1768402321218,0.7634331,942.15,940.37,2.5741607]
[1768402321417,0.7634331,942.14,940.37,2.5741607]
[1768402321619,0.7634331,942.13,940.26,2.5741607]
[1768402321823,0.7634331,942.12,939.98,2.5741607]
[1768402322022,0.7634331,942.11,939.98,2.5741607]
[1768402322224,0.7634331,942.1,939.98,2.5741607]
[1768402322524,0.7634331,942.09,939.94,2.5741607]
[1768402322824,0.7634331,942.08,939.94,2.5741607]
[1768402323025,0.7634331,942.07,939.94,2.5741607]
[1768402323227,0.7634331,942.06,939.94,2.5741607]
[1768402323426,0.7634331,942.05,939.86,2.5741607]
[1768402323626,0.7634331,942.04,939.86,2.5741607]
[1768402323824,0.7634331,942.03,939.94,2.5741607]
[1768402324022,0.7634331,942.02,939.94,2.5741607]
[1768402324225,0.7634331,942.01,939.94,2.5741607]
[1768402324424,0.7634331,942.0,939.94,2.5741607]
[1768402324725,0.7634331,941.99,939.94,2.5741607]
[1768402324925,0.7634331,941.98,939.94,2.5741607]
[1768402325129,0.7634331,941.97,939.94,2.5741607]
[1768402325327,0.7634331,941.96,939.94,2.5741607]
[1768402325528,0.7634331,941.95,939.94,2.5741607]
[1768402325728,0.76392915,941.94,939.94,2.5741607]
[1768402325928,0.76392915,941.93,939.94,2.5741607]
[1768402326224,0.76392915,941.92,939.94,2.5741607]
[1768402326423,0.76392915,941.91,939.95,2.5741607]
[1768402326630,0.76392915,941.9,939.95,2.5741607]
[1768402326924,0.76392915,941.89,939.95,2.5741607]
[1768402327125,0.76392915,941.88,939.95,2.5741607]
[1768402327423,0.76392915,941.87,940.01,2.5741607]
[1768402327627,0.76392915,941.86,940.01,2.5741607]
[1768402327829,0.76392915,941.85,940.01,2.5741607]
[1768402328125,0.76392915,941.84,940.14,2.5741607]
[1768402328426,0.76392915,941.83,940.14,2.5741607]
[1768402328628,0.76392915,941.82,940.15,2.5741607]
[1768402328827,0.76392915,941.81,940.15,2.5741607]
[1768402329129,0.76392915,941.8,940.15,2.5741607]
[1768402329331,0.76392915,941.79,940.15,2.5741607]
[1768402329524,0.76392915,941.78,940.15,2.5741607]
[1768402329829,0.76392915,941.77,940.15,2.5741607]
[1768402330030,2.027,942.08,940.29,2.5741607]
[1768402330229,0.76398552,942.07,940.29,2.5741607]
[1768402330526,0.76398552,942.06,940.29,2.5741607]
[1768402330726,0.76398552,942.05,940.3,2.5741607]
[1768402330926,2.027,942.08,940.3,2.5741607]
[1768402330927,0.76398552,942.04,940.3,2.5741607]
[1768402331128,0.76398552,942.03,940.43,2.5741607]
[1768402331326,0.76398552,942.02,940.43,2.5741607]
[1768402331628,0.76398552,942.01,940.39,2.5741607]
[1768402331832,0.76398552,942.0,940.26,2.5741607]
[1768402332031,0.76398552,941.99,940.26,2.5741607]
[1768402332229,0.76398552,941.98,940.24,2.5741607]
[1768402332432,0.76398552,941.97,940.24,2.5741607]
[1768402332733,0.76398552,941.96,940.26,2.5741607]
[1768402332928,0.76398552,941.95,940.26,2.5741607]
[1768402333129,0.76398552,941.94,940.26,2.5741607]
[1768402333328,0.76398552,941.93,940.26,2.5741607]
[1768402333528,0.76398552,941.92,940.26,2.5741607]
[1768402333728,0.76398552,941.91,940.26,2.5741607]
[1768402334027,2.027,942.08,940.19,2.5741607]
[1768402334028,0.76398552,941.9,940.19,2.5741607]
[1768402334230,0.76398552,941.89,940.19,2.5741607]
[1768402334432,0.76398552,941.88,940.07,2.5741607]
[1768402334633,0.76398552,941.87,940.07,2.5741607]
[1768402334831,0.76398552,941.86,940.05,2.5741607]
[1768402335030,0.76398552,941.85,940.05,2.5741607]
[1768402335229,0.76398552,941.84,940.05,2.5741607]
[1768402335432,0.76398552,941.83,940.06,2.5741607]
[1768402335731,0.76398552,941.82,940.06,2.5741607]
[1768402336030,0.76398552,941.81,940.06,2.5741607]
[1768402336232,0.76398552,941.8,940.06,2.5741607]
[1768402336432,0.76398552,941.79,940.26,2.5741607]
[1768402336733,2.027,942.08,940.26,2.5741607]
[1768402336734,0.76398552,941.78,940.26,2.5741607]
[1768402336932,0.76398552,941.77,940.25,2.5741607]
[1768402337133,0.76398552,941.76,940.25,2.5741607]
[1768402337333,0.76398552,941.75,940.25,2.5741607]
[1768402337536,0.76398552,941.74,940.25,2.5741607]
[1768402337733,0.76398552,941.73,940.25,2.5741607]
[1768402337938,0.76398552,941.72,940.18,2.5741607]
[1768402338133,0.76398552,941.71,940.18,2.5741607]
[1768402338339,0.76398552,941.7,940.18,2.5741607]
[1768402338640,0.76398552,941.69,940.16,2.5741607]
[1768402338840,0.76398552,941.68,940.16,2.5741607]
[1768402339039,0.76398552,941.67,940.16,2.5741607]
[1768402339240,0.76398552,941.66,940.16,2.5741607]
[1768402339436,0.76398552,941.65,940.16,2.5741607]
[1768402339641,0.76398552,941.64,940.16,2.5741607]
[1768402339841,0.76398552,941.63,940.16,2.5741607]
[1768402340041,0.76398552,941.62,940.21,2.5741607]
[1768402340244,2.027,942.08,940.21,2.5741607]
[1768402340542,0.76307974,942.07,940.22,2.5741607]
[1768402340742,0.76307974,942.06,940.22,2.5741607]
[1768402341038,0.76307974,942.05,940.22,2.5741607]
[1768402341242,0.76307974,942.04,940.22,2.5741607]
[1768402341439,0.76307974,942.03,940.22,2.5741607]
[1768402341639,0.76307974,942.02,940.22,2.5741607]